fUSD/lending_fUSD_20251217
["ID","MTS","AMOUNT","RATE_DAILY","PERIOD"]
[398861831,1765932642253,-150.0,0.0001754,2]
[398861832,1765932642263,-150.0,0.00017546,2]
[398861833,1765932642272,-150.0,0.00017562,2]
[398861834,1765932642282,-150.0,0.00017562,2]
[398861835,1765932642291,-150.0,0.00017562,2]
[398861836,1765932642299,-150.0,0.00017574,2]
[398861837,1765932642309,-150.0,0.00017576,2]
[398861838,1765932642317,-150.0,0.00017587,2]
[398861839,1765932642327,-1010.0,0.000176,2]
[398861840,1765932642336,-168.44,0.00017606,2]
[398861841,1765932642345,-150.0,0.00017611,2]
[398861842,1765932642354,-150.0,0.00017615,2]
[398861843,1765932642363,-150.0,0.00017622,2]
[398861844,1765932642372,-150.0,0.00017623,2]
[398861845,1765932642381,-150.0,0.0001763,2]
[398861846,1765932642390,-150.0,0.0001763,2]
[398861847,1765932642399,-150.0,0.0001763,2]
[398861848,1765932642408,-3732.0986529,0.0001764,2]
[398861849,1765932642417,-151.7,0.0001767,2]
[398861850,1765932642426,-150.0,0.00017671,2]
[398861851,1765932642435,-500.0,0.00017671,2]
[398861852,1765932642444,-500.0,0.00017671,2]
[398861853,1765932642454,-500.0,0.00017671,2]
[398861854,1765932642466,-500.0,0.00017671,2]
[398861855,1765932642475,-500.0,0.00017671,2]
[398861856,1765932642485,-150.0,0.00017671,2]
[398861857,1765932642494,-150.0,0.00017671,2]
[398861858,1765932642503,-150.0,0.00017671,2]
[398861859,1765932642513,-150.0,0.00017671,2]
[398861860,1765932642522,-500.0,0.00017671,2]
[398861861,1765932642532,-500.0,0.00017671,2]
[398861862,1765932642541,-1988.0,0.00017671,2]
[398861863,1765932642550,-150.0,0.00017671,2]
[398861864,1765932642559,-500.0,0.00017671,2]
[398861865,1765932642568,-500.0,0.00017671,2]
[398861866,1765932642577,-500.0,0.00017671,2]
[398861867,1765932642587,-150.0,0.00017671,2]
[398861868,1765932642597,-500.0,0.00017671,2]
[398861869,1765932642606,-150.0,0.00017672,2]
[398861870,1765932642615,-324.0,0.00017675,2]
[398861871,1765932642624,-150.0,0.00017677,2]
[398861872,1765932642634,-150.0,0.00017681,2]
[398861873,1765932642643,-150.0,0.00017684,2]
[398861874,1765932642651,-150.0,0.00017687,2]
[398861875,1765932642660,-150.0,0.00017721,2]
[398861876,1765932642669,-150.0,0.00017721,2]
[398861877,1765932642678,-150.0,0.00017721,2]
[398861878,1765932642687,-150.0,0.00017739,2]
[398861879,1765932642696,-150.0,0.0001774,2]
[398861880,1765932642705,-150.0,0.00017742,2]
[398861881,1765932642714,-324.0,0.00017768,2]
[398861882,1765932642723,-150.0,0.00017769,2]
[398861883,1765932642732,-324.0,0.00017772,2]
[398861885,1765932642741,-181.01,0.00017779,2]
[398861887,1765932642751,-688.49839244,0.00017781,2]
[398861889,1765932642760,-150.0,0.00017787,2]
[398861891,1765932642768,-150.0,0.00017793,2]
[398861893,1765932642777,-150.0,0.000178,2]
[398861894,1765932642786,-500.0,0.000178,2]
[398861896,1765932642795,-500.0,0.000178,2]
[398861897,1765932642804,-1000.0,0.000178,2]
[398861898,1765932642812,-167.25,0.000178,2]
[398861899,1765932642822,-500.0,0.00017801,2]
[398861900,1765932642832,-499.9999,0.00017802,2]
[398861901,1765932642841,-150.0,0.00017808,2]
[398861902,1765932642850,-202.69287898,0.00017808,2]
[398861903,1765932642859,-550.0,0.00017808,2]
[398861904,1765932642868,-500.0,0.00017808,2]
[398861905,1765932642877,-500.0,0.00017808,2]
[398861906,1765932642886,-500.0,0.00017808,2]
[398861907,1765932642895,-504.31095398,0.00017808,2]
[398861908,1765932642904,-150.0,0.00017808,2]
[398861909,1765932642913,-150.0,0.00017808,2]
[398861910,1765932642924,-500.0,0.00017808,2]
[398861911,1765932642935,-500.0,0.00017808,2]
[398861912,1765932642944,-1988.0,0.00017808,2]
[398861913,1765932642952,-150.0,0.00017808,2]
[398861914,1765932642961,-500.0,0.00017808,2]
[398861915,1765932642970,-500.0,0.00017808,2]
[398861916,1765932642979,-500.0,0.00017808,2]
[398861918,1765932642989,-150.0,0.00017808,2]
[398861920,1765932642997,-500.0,0.00017808,2]
[398861921,1765932643006,-500.0,0.00017808,2]
[398861922,1765932643015,-150.0,0.00017811,2]
[398861923,1765932643024,-150.0,0.00017818,2]
[398861924,1765932643033,-150.0,0.00017826,2]
[398861925,1765932643042,-500.0,0.00017829,2]
[398861926,1765932643052,-150.0,0.00017847,2]
[398861927,1765932643060,-150.0,0.00017847,2]
[398861928,1765932643069,-150.0,0.00017859,2]
[398861929,1765932643078,-324.0,0.00017864,2]
[398861930,1765932643087,-150.0,0.00017867,2]
[398861931,1765932643095,-150.0,0.00017873,2]
[398861932,1765932643104,-150.0,0.00017887,2]
[398861933,1765932643113,-500.0,0.00017899,2]
[398861934,1765932643122,-500.0,0.00017899,2]
[398861935,1765932643131,-500.0,0.00017899,2]
[398861936,1765932643139,-1000.0,0.00017899,2]
[398861937,1765932643148,-1000.0,0.00017899,2]
[398861938,1765932643157,-1000.0,0.00017899,2]
[398861939,1765932643166,-1029.15700818,0.00017899,2]
[398861940,1765932643174,-6767.5676,0.000179,2]
[398861941,1765932643184,-166.0,0.000179,2]
[398861942,1765932643195,-166.0,0.000179,2]
[398861943,1765932643204,-150.0,0.00017901,2]
[398861944,1765932643214,-150.0,0.00017901,2]
[398861945,1765932643223,-150.0,0.00017901,2]
[398861946,1765932643233,-150.0,0.00017915,2]
[398861947,1765932643242,-150.0,0.00017918,2]
[398861948,1765932643252,-150.0,0.00017932,2]
[398861949,1765932643262,-1099.38789114,0.00017933,2]
[398861950,1765932643271,-13927.2030797,0.00017937,2]
[398861951,1765932643280,-221.0801935,0.00017937,2]
[398861952,1765932643291,-10025.603849,0.00017937,2]
[398861953,1765932643300,-1565.1463979,0.00017937,2]
[398861954,1765932643310,-4238.0851943,0.00017937,2]
[398861955,1765932643319,-150.0,0.00017939,2]
[398861956,1765932643329,-324.0,0.00017939,2]
[398861957,1765932643338,-151.0,0.00017939,2]
[398861958,1765932643347,-500.0,0.00017942,2]
[398861959,1765932643356,-500.0,0.00017942,2]
[398861960,1765932643365,-539.56324415,0.00017942,2]
[398861961,1765932643374,-500.0,0.00017942,2]
[398861962,1765932643383,-500.0,0.00017942,2]
[398861963,1765932643392,-500.0,0.00017942,2]
[398861964,1765932643402,-160720.2955966,0.00017943,2]
[398861965,1765932643411,-330398.5040764,0.00017943,2]
[398861966,1765932643421,-151.0,0.00017943,2]
[398861967,1765932643431,-151.0,0.00017943,2]
[398861968,1765932643440,-151.0,0.00017943,2]
[398861969,1765932643450,-151.0,0.00017943,2]
[398861970,1765932643459,-151.0,0.00017943,2]
[398861971,1765932643469,-286.487582,0.00017943,2]
[398861972,1765932643478,-286.487582,0.00017943,2]
[398861974,1765932643487,-151.0,0.00017943,2]
[398861975,1765932643496,-286.487582,0.00017943,2]
[398861976,1765932643506,-286.487582,0.00017943,2]
[398861977,1765932643515,-151.0,0.00017943,2]
[398861978,1765932643524,-151.0,0.00017943,2]
[398861979,1765932643534,-151.0,0.00017943,2]
[398861980,1765932643543,-151.0,0.00017943,2]
[398861981,1765932643552,-151.0,0.00017943,2]
[398861982,1765932643561,-237.879168,0.00017943,2]
[398861983,1765932643570,-151.0,0.00017943,2]
[398861985,1765932643579,-353.224795,0.00017943,2]
[398861987,1765932643588,-353.224795,0.00017943,2]
[398861989,1765932643598,-353.224795,0.00017943,2]
[398861991,1765932643608,-353.224795,0.00017943,2]
[398861992,1765932643617,-151.0,0.00017943,2]
[398861993,1765932643626,-502.386997,0.00017943,2]
[398861994,1765932643635,-502.386997,0.00017943,2]
[398861995,1765932643644,-502.386997,0.00017943,2]
[398861996,1765932643653,-502.386997,0.00017943,2]
[398861997,1765932643663,-151.0,0.00017943,2]
[398861998,1765932643673,-286.452099,0.00017943,2]
[398861999,1765932643682,-286.452099,0.00017943,2]
[398862000,1765932643691,-286.452099,0.00017943,2]
[398862001,1765932643700,-286.452099,0.00017943,2]
[398862002,1765932643709,-151.0,0.00017943,2]
[398862003,1765932643718,-151.0,0.00017943,2]
[398862004,1765932643727,-151.0,0.00017943,2]
[398862005,1765932643736,-247.238922,0.00017943,2]
[398862006,1765932643745,-500.0,0.00017945,2]
[398862007,1765932643754,-500.0,0.00017945,2]
[398862008,1765932643763,-500.0,0.00017945,2]
[398862009,1765932643772,-500.0,0.00017945,2]
[398862010,1765932643781,-500.0,0.00017945,2]
[398862011,1765932643790,-1988.0,0.00017945,2]
[398862012,1765932643800,-500.0,0.00017945,2]
[398862013,1765932643809,-500.0,0.00017945,2]
[398862014,1765932643818,-305.0,0.00017945,2]
[398862015,1765932643827,-150.0,0.00017945,2]
[398862016,1765932643836,-500.0,0.00017945,2]
[398862017,1765932643845,-500.0,0.00017945,2]
[398862018,1765932643854,-150.0,0.00017956,2]
[398862019,1765932643863,-150.0,0.00017964,2]
[398862020,1765932643872,-2000.0,0.00017965,2]
[398862021,1765932643881,-348.59889748,0.00017967,2]
[398862022,1765932643890,-150.0,0.00017978,2]
[398862023,1765932643900,-1523.53500393,0.00017982,2]
[398862024,1765932643909,-150.0,0.00017987,2]
[398862025,1765932643918,-150.0,0.00017992,2]
[398862026,1765932643927,-500.0,0.00017999,2]
[398862027,1765932643935,-395.99727796,0.00017999,2]
[398862028,1765932643945,-500.0,0.00017999,2]
[398862029,1765932643954,-156.6488134,0.00017999,2]
[398862030,1765932643963,-2000.0,0.00017999,2]
[398862031,1765932643972,-35803.08888677,0.00018,2]
[398862032,1765932643981,-1184.82213164,0.00018,2]
[398862033,1765932643989,-44587.7951138,0.00018,2]
[398862034,1765932643999,-3496.84157916,0.00018,3]
[398862035,1765932644008,-127435.11652824,0.00018,2]
[398862036,1765932644017,-166.0,0.00018,2]
[398862037,1765932644026,-1000.0,0.00018,2]
[398862038,1765932644036,-176.25,0.00018,2]
[398862039,1765932644045,-1000.0,0.00018,2]
[398862040,1765932644055,-2699.51306,0.00018,2]
[398862041,1765932644064,-150.0,0.00018004,2]
[398862042,1765932644073,-150.0,0.0001801,2]
[398862043,1765932644082,-150.0,0.00018013,2]
[398862044,1765932644091,-324.0,0.00018014,2]
[398862045,1765932644101,-150.0,0.00018037,2]
[398862046,1765932644110,-150.0,0.00018037,2]
[398862047,1765932644120,-150.0,0.00018037,2]
[398862048,1765932644129,-150.0,0.00018037,2]
[398862049,1765932644138,-150.0,0.00018061,2]
[398862050,1765932644148,-150.0,0.00018064,2]
[398862051,1765932644157,-150.0,0.0001807,2]
[398862052,1765932644167,-324.0,0.00018075,2]
[398862053,1765932644464,-202.27,0.00018078,2]
[398862054,1765932644475,-555.69,0.00018079,2]
[398862055,1765932644485,-500.0,0.00018082,2]
[398862056,1765932644495,-500.0,0.00018082,2]
[398862057,1765932644504,-500.0,0.00018082,2]
[398862058,1765932644514,-500.0,0.00018082,2]
[398862059,1765932644523,-1988.0,0.00018082,2]
[398862060,1765932644534,-500.0,0.00018082,2]
[398862061,1765932644543,-500.0,0.00018082,2]
[398862062,1765932644552,-150.0,0.00018082,2]
[398862063,1765932644562,-500.0,0.00018082,2]
[398862064,1765932644572,-500.0,0.00018082,2]
[398862065,1765932644583,-1000.0,0.00018082,2]
[398862066,1765932644592,-150.0,0.00018082,2]
[398862067,1765932644602,-150.0,0.00018087,2]
[398862068,1765932644612,-150.0,0.00018096,2]
[398862069,1765932644622,-1771.28465308,0.000181,2]
[398862070,1765932644633,-150.0,0.0001811,2]
[398862071,1765932644644,-324.0,0.00018118,2]
[398862072,1765932644653,-150.0,0.00018118,2]
[398862073,1765932644663,-3948.61,0.00018121,2]
[398862074,1765932644672,-151.0,0.00018122,2]
[398862075,1765932644682,-151.0,0.00018122,2]
[398862076,1765932644692,-150.0,0.00018135,2]
[398862077,1765932644702,-150.0,0.00018142,2]
[398862078,1765932644711,-150.0,0.00018156,2]
[398862079,1765932644721,-150.0,0.00018159,2]
[398862080,1765932644731,-150.0,0.00018173,2]
[398862081,1765932644741,-150.0,0.00018173,2]
[398862082,1765932644750,-150.0,0.00018173,2]
[398862083,1765932644759,-324.0,0.00018179,2]
[398862084,1765932644768,-150.0,0.00018187,2]
[398862085,1765932644778,-150.0,0.00018201,2]
[398862086,1765932644787,-150.0,0.00018207,2]
[398862087,1765932644796,-17018.1134934,0.0001821,2]
[398862088,1765932644805,-9330.12030265,0.0001821,2]
[398862089,1765932644814,-150.0,0.00018215,2]
[398862090,1765932644823,-500.0,0.00018219,2]
[398862091,1765932644832,-500.0,0.00018219,2]
[398862092,1765932644841,-500.0,0.00018219,2]
[398862093,1765932644852,-500.0,0.00018219,2]
[398862094,1765932644861,-1988.0,0.00018219,2]
[398862095,1765932644870,-500.0,0.00018219,2]
[398862096,1765932644880,-500.0,0.00018219,2]
[398862097,1765932644889,-500.0,0.00018219,2]
[398862098,1765932644899,-324.0,0.00018223,2]
[398862099,1765932644908,-150.0,0.00018227,2]
[398862100,1765932644917,-150.0,0.00018227,2]
[398862101,1765932644926,-150.0,0.00018248,2]
[398862102,1765932644935,-150.0,0.00018256,2]
[398862103,1765932644944,-543.76,0.00018263,2]
[398862104,1765932644953,-151.0,0.00018263,2]
[398862105,1765932644962,-151.0,0.00018263,2]
[398862106,1765932644972,-151.0,0.00018263,2]
[398862107,1765932644982,-151.0,0.00018263,2]
[398862108,1765932644991,-151.0,0.00018263,2]
[398862109,1765932645000,-150.0,0.00018263,2]
[398862110,1765932645010,-150.0,0.00018266,2]
[398862111,1765932645019,-150.0,0.00018274,2]
[398862112,1765932645027,-150.0,0.00018281,2]
[398862113,1765932645036,-150.0,0.00018287,2]
[398862114,1765932645045,-324.0,0.00018293,2]
[398862115,1765932645054,-150.0,0.00018305,2]
[398862116,1765932645064,-324.0,0.00018316,2]
[398862117,1765932645074,-1105.75340175,0.00018317,2]
[398862118,1765932645084,-151.0,0.00018317,2]
[398862119,1765932645093,-713.97283296,0.00018329,2]
[398862120,1765932645102,-150.0,0.00018332,2]
[398862121,1765932645111,-150.0,0.00018334,2]
[398862122,1765932645121,-353.224795,0.00018335,2]
[398862123,1765932645130,-353.224795,0.00018335,2]
[398862124,1765932645140,-353.224795,0.00018335,2]
[398862125,1765932645150,-353.224795,0.00018335,2]
[398862126,1765932645159,-150.0,0.00018335,2]
[398862127,1765932645168,-151.0,0.00018336,2]
[398862128,1765932645177,-151.0,0.00018336,2]
[398862129,1765932645190,-151.0,0.00018336,2]
[398862130,1765932645200,-286.487582,0.00018336,2]
[398862131,1765932645211,-286.487582,0.00018336,2]
[398862132,1765932645222,-151.0,0.00018336,2]
[398862133,1765932645233,-286.487582,0.00018336,2]
[398862134,1765932645242,-286.487582,0.00018336,2]
[398862135,1765932645251,-151.0,0.00018337,2]
[398862136,1765932645261,-502.386997,0.00018337,2]
[398862137,1765932645271,-502.386997,0.00018337,2]
[398862138,1765932645280,-502.386997,0.00018337,2]
[398862139,1765932645290,-502.386997,0.00018337,2]
[398862140,1765932645300,-178.68896823,0.00018337,2]
[398862141,1765932645309,-151.0,0.00018351,2]
[398862142,1765932645320,-555.69,0.00018353,2]
[398862143,1765932645330,-150.0,0.00018353,2]
[398862144,1765932645339,-150.0,0.00018353,2]
[398862145,1765932645348,-150.0,0.00018353,2]
[398862146,1765932645357,-500.0,0.00018356,2]
[398862147,1765932645366,-500.0,0.00018356,2]
[398862148,1765932645375,-470.0,0.00018356,2]
[398862149,1765932645384,-1988.0,0.00018356,2]
[398862150,1765932645393,-500.0,0.00018356,2]
[398862151,1765932645403,-500.0,0.00018356,2]
[398862152,1765932645413,-500.0,0.00018356,2]
[398862153,1765932645422,-151.0,0.00018356,2]
[398862154,1765932645432,-151.0,0.00018356,2]
[398862155,1765932645441,-151.0,0.00018356,2]
[398862156,1765932645451,-151.0,0.00018356,2]
[398862157,1765932645461,-151.0,0.00018356,2]
[398862158,1765932645470,-151.0,0.00018356,2]
[398862159,1765932645480,-286.452099,0.00018356,2]
[398862160,1765932645489,-286.452099,0.00018356,2]
[398862161,1765932645505,-286.452099,0.00018356,2]
[398862162,1765932645515,-286.452099,0.00018356,2]
[398862163,1765932645525,-151.0,0.00018356,2]
[398862164,1765932645535,-151.0,0.00018356,2]
[398862165,1765932645545,-47618.56,0.00018356,2]
[398862166,1765932645554,-1152.0,0.00018377,2]
[398862167,1765932645563,-150.0,0.00018387,2]
[398862168,1765932645572,-150.0,0.0001839,2]
[398862169,1765932645581,-150.0,0.00018393,2]
[398862170,1765932645590,-150.0,0.00018397,2]
[398862171,1765932645600,-150.0,0.00018402,2]
[398862172,1765932645609,-1105.75340172,0.00018414,2]
[398862173,1765932645618,-150.0,0.00018444,2]
[398862174,1765932645627,-150.0,0.00018444,2]
[398862175,1765932645637,-150.0,0.00018444,2]
[398862176,1765932645646,-150.0,0.00018451,2]
[398862177,1765932645655,-150.0,0.00018452,2]
[398862178,1765932645665,-500.0,0.00018455,2]
[398862179,1765932645674,-150.0,0.00018459,2]
[398862180,1765932645683,-150.0,0.00018463,2]
[398862181,1765932645692,-324.0,0.00018474,2]
[398862182,1765932645701,-150.0,0.00018487,2]
[398862183,1765932645710,-500.0,0.00018493,2]
[398862184,1765932645719,-500.0,0.00018493,2]
[398862185,1765932645728,-1988.0,0.00018493,2]
[398862186,1765932645737,-300.0,0.00018493,2]
[398862187,1765932645746,-500.0,0.00018493,2]
[398862188,1765932645755,-500.0,0.00018493,2]
[398862189,1765932645764,-150.0,0.00018498,2]
[398862190,1765932645773,-150.0,0.00018499,2]
[398862191,1765932645782,-1105.75340172,0.00018511,2]
[398862192,1765932645791,-150.0,0.00018512,2]
[398862194,1765932645800,-150.0,0.00018512,2]
[398862196,1765932645810,-150.0,0.00018512,2]
[398862198,1765932645819,-324.0,0.0001852,2]
[398862199,1765932645828,-150.0,0.00018528,2]
[398862200,1765932645837,-324.0,0.00018533,2]
[398862201,1765932645849,-150.0,0.00018534,2]
[398862202,1765932645859,-543.76,0.00018537,2]
[398862203,1765932645869,-324.0,0.00018543,2]
[398862204,1765932645880,-150.0,0.00018548,2]
[398862205,1765932645889,-150.0,0.00018552,2]
[398862206,1765932645898,-150.0,0.00018564,2]
[398862207,1765932645909,-150.0,0.00018571,2]
[398862208,1765932645920,-150.0,0.00018587,2]
[398862209,1765932645929,-150.0,0.00018593,2]
[398862210,1765932645938,-150.0,0.00018597,2]
[398862211,1765932645949,-298.26089446,0.000186,2]
[398862212,1765932645959,-334.5472959,0.000186,2]
[398862213,1765932645976,-150.0,0.00018607,2]
[398862214,1765932645987,-150.0,0.00018607,2]
[398862215,1765932645997,-1105.75340172,0.00018609,2]
[398862216,1765932646007,-150.0,0.00018625,2]
[398862217,1765932646016,-500.0,0.0001863,2]
[398862218,1765932646026,-500.0,0.0001863,2]
[398862219,1765932646035,-1988.0,0.0001863,2]
[398862220,1765932646044,-500.0,0.0001863,2]
[398862221,1765932646054,-500.0,0.0001863,2]
[398862222,1765932646063,-150.0,0.0001863,2]
[398862223,1765932646073,-150.0,0.00018646,2]
[398862224,1765932646083,-324.0,0.00018646,2]
[398862225,1765932646091,-150.0,0.00018659,2]
[398862226,1765932646100,-150.0,0.00018661,2]
[398862227,1765932646110,-150.0,0.0001867,2]
[398862228,1765932646119,-150.0,0.00018687,2]
[398862229,1765932646129,-150.0,0.0001869,2]
[398862230,1765932646138,-150.0,0.00018694,2]
[398862231,1765932646147,-1105.75340172,0.00018706,2]
[398862232,1765932646157,-150.0,0.00018715,2]
[398862233,1765932646167,-150.0,0.00018715,2]
[398862234,1765932646176,-150.0,0.00018715,2]
[398862235,1765932646189,-150.0,0.00018724,2]
[398862236,1765932646198,-150.0,0.00018743,2]
[398862237,1765932646208,-150.0,0.00018749,2]
[398862238,1765932646218,-1000.0,0.0001876,2]
[398862239,1765932646227,-500.0,0.00018767,2]
[398862240,1765932646236,-420.89313889,0.00018767,2]
[398862241,1765932646245,-1988.0,0.00018767,2]
[398862242,1765932646254,-500.0,0.00018767,2]
[398862243,1765932646266,-500.0,0.00018767,2]
[398862244,1765932646275,-150.0,0.00018769,2]
[398862245,1765932646284,-150.0,0.00018775,2]
[398862246,1765932646292,-150.0,0.00018786,2]
[398862247,1765932646302,-150.0,0.0001879,2]
[398862248,1765932646311,-1847.19441991,0.00018791,2]
[398862249,1765932646320,-150.0,0.00018792,2]
[398862250,1765932646329,-713.28579771,0.000188,2]
[398862251,1765932646338,-10000.0,0.000188,2]
[398862252,1765932646347,-195.3184449,0.000188,2]
[398862253,1765932646356,-1105.75340172,0.00018803,2]
[398862254,1765932646365,-150.0,0.00018805,2]
[398862255,1765932646376,-150.0,0.00018808,2]
[398862256,1765932646385,-150.0,0.0001881,2]
[398862257,1765932646394,-1847.1944199,0.00018813,2]
[398862258,1765932646403,-150.0,0.00018824,2]
[398862259,1765932646413,-1847.1944199,0.00018835,2]
[398862260,1765932646422,-324.0,0.00018836,2]
[398862261,1765932646431,-150.0,0.0001884,2]
[398862263,1765932646441,-713.2857977,0.0001885,2]
[398862264,1765932646450,-195.3184449,0.0001885,2]
[398862265,1765932646459,-150.0,0.00018855,2]
[398862266,1765932646468,-1847.1944199,0.00018856,2]
[398862267,1765932646477,-150.0,0.00018868,2]
[398862268,1765932646486,-324.0,0.00018868,2]
[398862269,1765932646495,-13648.0,0.00018877,2]
[398862270,1765932646504,-740.38982778,0.00018877,2]
[398862271,1765932646513,-150.0,0.00018878,2]
[398862272,1765932646522,-1847.1944199,0.00018878,2]
[398862273,1765932646531,-150.0,0.00018881,2]
[398862274,1765932646540,-25000.0,0.00018882,3]
[398862275,1765932646549,-150.0,0.00018886,2]
[398862276,1765932646559,-150.0,0.00018889,2]
[398862277,1765932646569,-151.0,0.00018891,2]
[398862278,1765932646579,-151.0,0.00018891,2]
[398862279,1765932646587,-25000.0,0.00018891,3]
[398862280,1765932646596,-25000.0,0.00018891,3]
[398862281,1765932646606,-25000.0,0.00018891,3]
[398862282,1765932646615,-25000.0,0.00018891,3]
[398862283,1765932646623,-150.0,0.00018896,2]
[398862284,1765932646633,-500.0,0.00018898,2]
[398862285,1765932646642,-3378.01013678,0.000189,3]
[398862286,1765932646651,-481.35955285,0.000189,3]
[398862287,1765932646660,-713.2857977,0.000189,2]
[398862288,1765932646669,-25000.0,0.000189,3]
[398862289,1765932646679,-25000.0,0.000189,3]
[398862290,1765932646688,-1105.75340172,0.000189,2]
[398862291,1765932646697,-25000.0,0.000189,3]
[398862292,1765932646707,-158.08541667,0.000189,2]
[398862293,1765932646716,-151.0,0.000189,2]
[398862294,1765932646726,-151.0,0.000189,2]
[398862295,1765932646737,-151.0,0.000189,2]
[398862296,1765932646746,-25000.0,0.000189,3]
[398862297,1765932646755,-151.0,0.000189,2]
[398862298,1765932646768,-151.0,0.000189,2]
[398862299,1765932646777,-151.0,0.000189,2]
[398862300,1765932646785,-151.0,0.000189,2]
[398862301,1765932646795,-286.487582,0.000189,2]
[398862302,1765932646804,-286.487582,0.000189,2]
[398862303,1765932646814,-286.487582,0.000189,2]
[398862304,1765932646823,-286.487582,0.000189,2]
[398862305,1765932646834,-151.0,0.000189,2]
[398862306,1765932646844,-151.0,0.000189,2]
[398862307,1765932646853,-151.0,0.000189,2]
[398862308,1765932646862,-151.0,0.000189,2]
[398862309,1765932646871,-151.0,0.000189,2]
[398862310,1765932646880,-195.3184449,0.000189,2]
[398862311,1765932646889,-151.0,0.000189,2]
[398862312,1765932646898,-353.224795,0.000189,2]
[398862313,1765932646908,-353.224795,0.000189,2]
[398862314,1765932646918,-353.224795,0.000189,2]
[398862315,1765932646927,-353.224795,0.000189,2]
[398862316,1765932646937,-25000.0,0.000189,3]
[398862317,1765932646945,-154.53344708,0.000189,2]
[398862318,1765932646954,-154.53344708,0.000189,2]
[398862319,1765932646963,-154.53344708,0.000189,2]
[398862320,1765932646972,-154.53344708,0.000189,2]
[398862321,1765932646981,-154.53344708,0.000189,2]
[398862322,1765932646990,-154.53344708,0.000189,2]
[398862323,1765932646999,-154.53344708,0.000189,2]
[398862324,1765932647008,-154.53344708,0.000189,2]
[398862325,1765932647017,-154.53344708,0.000189,2]
[398862326,1765932647026,-154.53344708,0.000189,2]
[398862327,1765932647035,-154.53344708,0.000189,2]
[398862328,1765932647043,-154.53344708,0.000189,2]
[398862329,1765932647052,-154.53344708,0.000189,2]
[398862330,1765932647061,-154.53344708,0.000189,2]
[398862331,1765932647070,-154.53344708,0.000189,2]
[398862332,1765932647079,-502.386997,0.000189,2]
[398862333,1765932647088,-154.53344708,0.000189,2]
[398862334,1765932647097,-154.53344708,0.000189,2]
[398862335,1765932647105,-154.53,0.000189,2]
[398862336,1765932647114,-324.52023886,0.000189,2]
[398862337,1765932647123,-324.52023886,0.000189,2]
[398862338,1765932647132,-324.52023886,0.000189,2]
[398862339,1765932647141,-502.386997,0.000189,2]
[398862340,1765932647149,-324.52023886,0.000189,2]
[398862341,1765932647159,-324.52023886,0.000189,2]
[398862342,1765932647167,-324.52023886,0.000189,2]
[398862343,1765932647176,-324.52023886,0.000189,2]
[398862344,1765932647186,-324.52023886,0.000189,2]
[398862345,1765932647197,-502.386997,0.000189,2]
[398862346,1765932647206,-324.52023886,0.000189,2]
[398862347,1765932647214,-324.52023886,0.000189,2]